[Event "Early-Titled-Tuesday-Blitz-July-09-2024"]
[Site "Chess.com"]
[Date "2024.07.09"]
[Round "4"]
[White "Mikasinski"]
[Black "PositionalPanther"]
[Result "0-1"]
[WhiteElo "2694"]
[BlackElo "2504"]
[TimeControl "180+1"]
[EndTime "8:40:21 PDT"]
[Termination "PositionalPanther won by resignation"]

1. e4 {[%clk 0:02:53.5]} 1... e6 {[%clk 0:02:59.5]} 2. d4 {[%clk 0:02:53.2]}
2... d5 {[%clk 0:02:59.4]} 3. Nc3 {[%clk 0:02:54]} 3... Nf6 {[%clk 0:02:59]} 4.
Bg5 {[%clk 0:02:53.7]} 4... dxe4 {[%clk 0:02:59]} 5. Nxe4 {[%clk 0:02:53.7]}
5... Be7 {[%clk 0:02:59.5]} 6. Bxf6 {[%clk 0:02:54.4]} 6... gxf6 {[%clk
0:02:59.2]} 7. Nf3 {[%clk 0:02:54.9]} 7... f5 {[%clk 0:02:59.4]} 8. Nc3 {[%clk
0:02:54.5]} 8... a6 {[%clk 0:02:59.9]} 9. g3 {[%clk 0:02:55.1]} 9... b5 {[%clk
0:03:00.3]} 10. Bg2 {[%clk 0:02:55.8]} 10... Bb7 {[%clk 0:02:59.9]} 11. O-O
{[%clk 0:02:56.4]} 11... c5 {[%clk 0:03:00.4]} 12. d5 {[%clk 0:02:56.3]} 12...
b4 {[%clk 0:03:00.1]} 13. dxe6 {[%clk 0:02:57]} 13... bxc3 {[%clk 0:02:59.8]}
14. exf7+ {[%clk 0:02:57.4]} 14... Kf8 {[%clk 0:02:59.8]} 15. Qe2 {[%clk
0:02:57.5]} 15... Be4 {[%clk 0:02:45.8]} 16. Rad1 {[%clk 0:02:53.6]} 16... Qb6
{[%clk 0:02:39.6]} 17. bxc3 {[%clk 0:02:50.4]} 17... Nc6 {[%clk 0:02:34.9]} 18.
Nh4 {[%clk 0:02:40.1]} 18... Bxh4 {[%clk 0:02:29.4]} 19. Bxe4 {[%clk 0:02:39.9]}
19... fxe4 {[%clk 0:02:18.1]} 20. Rb1 {[%clk 0:02:28]} 20... Qc7 {[%clk
0:02:10]} 21. Qxe4 {[%clk 0:02:19.7]} 21... Bf6 {[%clk 0:01:56.6]} 22. Qf5
{[%clk 0:02:16.5]} 22... Kxf7 {[%clk 0:01:42.4]} 23. Qd5+ {[%clk 0:02:14.8]}
23... Kg7 {[%clk 0:01:37]} 24. Qxc5 {[%clk 0:02:14.7]} 24... Rab8 {[%clk
0:01:24]} 25. Rbd1 {[%clk 0:02:13.9]} 25... Rbd8 {[%clk 0:01:20.5]} 26. Rb1
{[%clk 0:02:12.9]} 26... Rhe8 {[%clk 0:01:08.3]} 27. Rb4 {[%clk 0:02:12.3]}
27... Qd6 {[%clk 0:00:55.6]} 28. Rg4+ {[%clk 0:02:12.4]} 28... Kh8 {[%clk
0:00:55.3]} 29. Qh5 {[%clk 0:02:08.5]} 29... Ne5 {[%clk 0:00:49.5]} 30. Rd4
{[%clk 0:02:07.6]} 30... Qe7 {[%clk 0:00:45.8]} 31. Rf4 {[%clk 0:02:02.4]} 31...
Ng6 {[%clk 0:00:40.9]} 32. Rf3 {[%clk 0:02:01]} 32... Qe5 {[%clk 0:00:37.6]} 33.
Qg4 {[%clk 0:01:52.6]} 33... Qe6 {[%clk 0:00:33.3]} 34. Qh5 {[%clk 0:01:43.5]}
34... Bg7 {[%clk 0:00:31.8]} 35. Re3 {[%clk 0:01:41.4]} 35... Qf6 {[%clk
0:00:30.4]} 36. Rf3 {[%clk 0:01:19]} 36... Qe5 {[%clk 0:00:29.9]} 37. Qh3 {[%clk
0:01:13.2]} 37... Qe6 {[%clk 0:00:29]} 38. Qh5 {[%clk 0:01:09.5]} 38... Qe2
{[%clk 0:00:28.6]} 39. Kg2 {[%clk 0:01:01.2]} 39... Qxc2 {[%clk 0:00:22.7]} 40.
h4 {[%clk 0:00:57]} 40... Qe4 {[%clk 0:00:19.7]} 41. Qf5 {[%clk 0:00:47.3]}
41... Qxf5 {[%clk 0:00:19]} 42. Rxf5 {[%clk 0:00:48.2]} 42... Rf8 {[%clk
0:00:19.1]} 43. Rxf8+ {[%clk 0:00:46.6]} 43... Nxf8 {[%clk 0:00:20]} 44. c4
{[%clk 0:00:46]} 44... Rc8 {[%clk 0:00:20]} 45. Rc1 {[%clk 0:00:45.4]} 45... Ne6
{[%clk 0:00:20.3]} 46. a4 {[%clk 0:00:44]} 46... Nc5 {[%clk 0:00:20.8]} 47. a5
{[%clk 0:00:44.4]} 47... Nb3 {[%clk 0:00:21.2]} 48. Rc2 {[%clk 0:00:43.6]} 48...
Nxa5 {[%clk 0:00:21.6]} 49. Ra2 {[%clk 0:00:44]} 49... Rc5 {[%clk 0:00:20.2]}
50. g4 {[%clk 0:00:42.2]} 50... Bc3 {[%clk 0:00:20.6]} 51. Ra3 {[%clk
0:00:40.1]} 51... Bb4 {[%clk 0:00:20.6]} 52. Ra4 {[%clk 0:00:37.6]} 52... Rxc4
{[%clk 0:00:21]} 53. f3 {[%clk 0:00:37.5]} 53... Kg7 {[%clk 0:00:21]} 54. Kh3
{[%clk 0:00:35.9]} 54... Bc3 {[%clk 0:00:20.9]} 55. Ra2 {[%clk 0:00:35.6]} 55...
Rd4 {[%clk 0:00:19.8]} 56. Re2 {[%clk 0:00:35.1]} 56... Rd7 {[%clk 0:00:19.6]}
57. g5 {[%clk 0:00:34.2]} 57... Nc4 {[%clk 0:00:18.7]} 58. Rc2 {[%clk
0:00:34.3]} 58... Rd3 {[%clk 0:00:18.8]} 59. Kg4 {[%clk 0:00:34.3]} 59... a5
{[%clk 0:00:19.1]} 60. f4 {[%clk 0:00:34.4]} 60... a4 {[%clk 0:00:19.5]} 61. f5
{[%clk 0:00:35]} 61... Ne3+ {[%clk 0:00:19.8]} 62. Kf3 {[%clk 0:00:34.4]} 62...
Nxc2+ {[%clk 0:00:20.7]} 63. Ke4 {[%clk 0:00:35]} 63... Rd4+ {[%clk 0:00:20.7]}
64. Ke5 {[%clk 0:00:35]} 64... a3 {[%clk 0:00:20.7]} 65. Ke6 {[%clk 0:00:35.9]}
65... Re4+ {[%clk 0:00:20.6]} 66. Kd5 {[%clk 0:00:36.1]} 66... Re5+ {[%clk
0:00:20.3]} 67. Kd6 {[%clk 0:00:37]} 67... a2 {[%clk 0:00:20.4]} 0-1

[Event "Early-Titled-Tuesday-Blitz-July-09-2024"]
[Site "Chess.com"]
[Date "2024.07.09"]
[Round "4"]
[White "GilbertoHernandezAmura"]
[Black "Nechitaylo_Nikita"]
[Result "1-0"]
[WhiteElo "2514"]
[BlackElo "2314"]
[TimeControl "180+1"]
[EndTime "8:40:21 PDT"]
[Termination "GilbertoHernandezAmura won on time"]

1. e4 {[%clk 0:02:56]} 1... c5 {[%clk 0:03:00.2]} 2. Nf3 {[%clk 0:02:55.2]} 2...
Nc6 {[%clk 0:02:59]} 3. Bb5 {[%clk 0:02:53.9]} 3... e5 {[%clk 0:02:59.2]} 4.
Bxc6 {[%clk 0:02:45.3]} 4... dxc6 {[%clk 0:03:00.1]} 5. d3 {[%clk 0:02:43.3]}
5... Bd6 {[%clk 0:02:55.5]} 6. a4 {[%clk 0:02:39.5]} 6... Nf6 {[%clk 0:02:48.2]}
7. h3 {[%clk 0:02:35.8]} 7... O-O {[%clk 0:02:47.9]} 8. Be3 {[%clk 0:02:36]}
8... Ne8 {[%clk 0:02:43.1]} 9. Nbd2 {[%clk 0:02:36]} 9... Nc7 {[%clk 0:02:37.7]}
10. Nc4 {[%clk 0:02:28]} 10... f6 {[%clk 0:02:38.3]} 11. a5 {[%clk 0:02:25]}
11... Ne6 {[%clk 0:02:32.7]} 12. O-O {[%clk 0:02:23.5]} 12... Nd4 {[%clk
0:02:29.4]} 13. Nfd2 {[%clk 0:02:17.3]} 13... Be6 {[%clk 0:02:23.8]} 14. c3
{[%clk 0:02:15.9]} 14... Nb5 {[%clk 0:02:24.3]} 15. Qe2 {[%clk 0:02:05.7]} 15...
Nd4 {[%clk 0:02:16]} 16. Qd1 {[%clk 0:02:01.5]} 16... Be7 {[%clk 0:02:12]} 17.
f4 {[%clk 0:01:53.8]} 17... Nb5 {[%clk 0:02:01.7]} 18. Qe2 {[%clk 0:01:51.3]}
18... Qc7 {[%clk 0:01:27.1]} 19. fxe5 {[%clk 0:01:49.5]} 19... fxe5 {[%clk
0:01:28]} 20. Nb3 {[%clk 0:01:39.8]} 20... b6 {[%clk 0:01:24.4]} 21. axb6 {[%clk
0:01:32.4]} 21... axb6 {[%clk 0:01:25.3]} 22. Rxa8 {[%clk 0:01:32.4]} 22... Rxa8
{[%clk 0:01:26.2]} 23. Qh5 {[%clk 0:01:32.3]} 23... Bf6 {[%clk 0:01:14.3]} 24.
Bg5 {[%clk 0:01:25.8]} 24... Bxg5 {[%clk 0:00:33.5]} 25. Qxg5 {[%clk 0:01:26.7]}
25... Bxc4 {[%clk 0:00:33.6]} 26. dxc4 {[%clk 0:01:27.3]} 26... Nd6 {[%clk
0:00:34.2]} 27. Qxe5 {[%clk 0:01:26.1]} 27... Re8 {[%clk 0:00:34.8]} 28. Qg3
{[%clk 0:01:20.8]} 28... Qe7 {[%clk 0:00:29.6]} 29. Re1 {[%clk 0:01:16.9]} 29...
Nxc4 {[%clk 0:00:26.2]} 30. Re2 {[%clk 0:01:10.2]} 30... Qe6 {[%clk 0:00:17.6]}
31. Nc1 {[%clk 0:01:06.1]} 31... Nd6 {[%clk 0:00:16.1]} 32. e5 {[%clk
0:01:00.4]} 32... Nc4 {[%clk 0:00:16.2]} 33. Nd3 {[%clk 0:01:00.6]} 33... Rd8
{[%clk 0:00:14.2]} 34. Nf4 {[%clk 0:00:58.4]} 34... Qf5 {[%clk 0:00:12.5]} 35.
e6 {[%clk 0:00:55.7]} 35... Rd1+ {[%clk 0:00:12.1]} 36. Kh2 {[%clk 0:00:55.2]}
36... Qb1 {[%clk 0:00:08.9]} 37. Qf2 {[%clk 0:00:47.5]} 37... Rh1+ {[%clk
0:00:06]} 38. Kg3 {[%clk 0:00:47.9]} 38... Nd6 {[%clk 0:00:06.4]} 39. e7 {[%clk
0:00:43.6]} 39... Qf5 {[%clk 0:00:02.5]} 40. e8=Q+ {[%clk 0:00:37.5]} 40... Nxe8
{[%clk 0:00:02.9]} 41. Rxe8+ {[%clk 0:00:37.6]} 41... Kf7 {[%clk 0:00:03.6]} 42.
Re3 {[%clk 0:00:30.8]} 42... g5 {[%clk 0:00:02.5]} 43. Nh5 {[%clk 0:00:28.1]}
43... Qxf2+ {[%clk 0:00:02.2]} 44. Kxf2 {[%clk 0:00:29]} 44... Kg6 {[%clk
0:00:02.5]} 45. Ng3 {[%clk 0:00:28.8]} 45... Rb1 {[%clk 0:00:03.4]} 46. Re2
{[%clk 0:00:27.7]} 46... b5 {[%clk 0:00:03.2]} 47. Ne4 {[%clk 0:00:27.4]} 47...
c4 {[%clk 0:00:02.4]} 48. Nc5 {[%clk 0:00:26.7]} 48... Kf5 {[%clk 0:00:01.8]}
49. Kg3 {[%clk 0:00:23.6]} 49... h5 {[%clk 0:00:01.5]} 50. Ne6 {[%clk
0:00:23.2]} 50... Rxb2 {[%clk 0:00:01.1]} 51. Nd4+ {[%clk 0:00:22.7]} 51... Kg6
{[%clk 0:00:01]} 52. Rxb2 {[%clk 0:00:23]} 1-0

[Event "Early-Titled-Tuesday-Blitz-July-09-2024"]
[Site "Chess.com"]
[Date "2024.07.09"]
[Round "4"]
[White "VladimirKramnik"]
[Black "Flawless_Fighter"]
[Result "1-0"]
[WhiteElo "3001"]
[BlackElo "2796"]
[TimeControl "180+1"]
[EndTime "8:40:23 PDT"]
[Termination "VladimirKramnik won by resignation"]

1. d4 {[%clk 0:03:00.9]} 1... Nf6 {[%clk 0:02:59.8]} 2. Nf3 {[%clk 0:03:00.4]}
2... d5 {[%clk 0:02:59.8]} 3. e3 {[%clk 0:03:00.1]} 3... e6 {[%clk 0:02:59.9]}
4. Bd3 {[%clk 0:02:58.3]} 4... b6 {[%clk 0:03:00.2]} 5. O-O {[%clk 0:02:56.2]}
5... Bb7 {[%clk 0:03:00.7]} 6. Nbd2 {[%clk 0:02:54.3]} 6... Nbd7 {[%clk
0:03:00.8]} 7. Qe2 {[%clk 0:02:53.6]} 7... Be7 {[%clk 0:02:56.7]} 8. e4 {[%clk
0:02:52.4]} 8... dxe4 {[%clk 0:02:56.4]} 9. Nxe4 {[%clk 0:02:53]} 9... Nxe4
{[%clk 0:02:56.9]} 10. Bxe4 {[%clk 0:02:53.6]} 10... Bxe4 {[%clk 0:02:57.6]} 11.
Qxe4 {[%clk 0:02:54.2]} 11... O-O {[%clk 0:02:58.2]} 12. Qc6 {[%clk 0:02:51.3]}
12... Rc8 {[%clk 0:02:47.8]} 13. Be3 {[%clk 0:02:50]} 13... Nf6 {[%clk
0:02:35.8]} 14. c4 {[%clk 0:02:45.6]} 14... Qd7 {[%clk 0:02:35.3]} 15. Ne5
{[%clk 0:02:45.4]} 15... Qd6 {[%clk 0:02:25.8]} 16. Rad1 {[%clk 0:02:42.3]}
16... Rfd8 {[%clk 0:02:19.1]} 17. f4 {[%clk 0:02:36.7]} 17... Nd7 {[%clk
0:02:08.7]} 18. Qf3 {[%clk 0:02:31]} 18... c6 {[%clk 0:02:01.4]} 19. a3 {[%clk
0:02:15.6]} 19... b5 {[%clk 0:01:57.7]} 20. cxb5 {[%clk 0:02:06.1]} 20... cxb5
{[%clk 0:01:55.7]} 21. d5 {[%clk 0:01:44.6]} 21... Bf6 {[%clk 0:01:43]} 22. Nc6
{[%clk 0:01:35.5]} 22... Re8 {[%clk 0:01:40.6]} 23. Nxa7 {[%clk 0:01:34.4]}
23... Rb8 {[%clk 0:01:22.4]} 24. Nc6 {[%clk 0:01:33.1]} 24... Rbc8 {[%clk
0:01:22.8]} 25. b4 {[%clk 0:01:09.1]} 25... exd5 {[%clk 0:01:16.7]} 26. Na7
{[%clk 0:01:08.9]} 26... Rb8 {[%clk 0:01:00.5]} 27. Rxd5 {[%clk 0:01:07.6]}
27... Qe6 {[%clk 0:01:00.7]} 28. Bf2 {[%clk 0:01:06.1]} 28... Nf8 {[%clk
0:00:46.5]} 29. Nxb5 {[%clk 0:01:02.1]} 29... Qa6 {[%clk 0:00:34.4]} 30. Nc7
{[%clk 0:01:00.1]} 30... Qc6 {[%clk 0:00:30.2]} 31. Nxe8 {[%clk 0:00:59.3]}
31... Rxe8 {[%clk 0:00:31.1]} 32. b5 {[%clk 0:00:58.8]} 32... Qc4 {[%clk
0:00:31.1]} 33. b6 {[%clk 0:00:55]} 33... Ne6 {[%clk 0:00:31.3]} 34. Re1 {[%clk
0:00:47.1]} 34... Rc8 {[%clk 0:00:27.9]} 35. b7 {[%clk 0:00:46.6]} 35... Rb8
{[%clk 0:00:28.3]} 36. Rdd1 {[%clk 0:00:40.3]} 36... Qa6 {[%clk 0:00:16.1]} 37.
Rb1 {[%clk 0:00:40.1]} 37... h6 {[%clk 0:00:15]} 38. g3 {[%clk 0:00:39.8]} 38...
Bd4 {[%clk 0:00:07.6]} 39. Bxd4 {[%clk 0:00:35.9]} 39... Nxd4 {[%clk 0:00:08.5]}
40. Qe4 {[%clk 0:00:36.1]} 40... Ne6 {[%clk 0:00:08.9]} 41. h4 {[%clk
0:00:33.1]} 41... Nc5 {[%clk 0:00:08.6]} 42. Qe8+ {[%clk 0:00:32]} 42... Rxe8
{[%clk 0:00:08.1]} 43. Rxe8+ {[%clk 0:00:32.6]} 43... Kh7 {[%clk 0:00:09]} 44.
b8=Q {[%clk 0:00:32.5]} 44... Qd3 {[%clk 0:00:09.1]} 45. Rh8+ {[%clk 0:00:29.8]}
45... Kg6 {[%clk 0:00:08.5]} 46. Qb6+ {[%clk 0:00:27.8]} 46... f6 {[%clk
0:00:06.4]} 47. Qxc5 {[%clk 0:00:21.4]} 47... Qxg3+ {[%clk 0:00:06.6]} 48. Kf1
{[%clk 0:00:20.8]} 48... Qd3+ {[%clk 0:00:03.3]} 49. Kf2 {[%clk 0:00:20.1]}
49... Qd2+ {[%clk 0:00:01.6]} 50. Kf3 {[%clk 0:00:19.5]} 50... Qd3+ {[%clk
0:00:02.2]} 51. Qe3 {[%clk 0:00:19.2]} 51... Qxb1 {[%clk 0:00:02.2]} 52. Qe4+
{[%clk 0:00:19.3]} 52... f5 {[%clk 0:00:01.6]} 53. Qxb1 {[%clk 0:00:18.6]} 53...
Kh5 {[%clk 0:00:01.7]} 54. Qxf5+ {[%clk 0:00:18.1]} 1-0

[Event "Early-Titled-Tuesday-Blitz-July-09-2024"]
[Site "Chess.com"]
[Date "2024.07.09"]
[Round "4"]
[White "sergoy"]
[Black "CSB7"]
[Result "1-0"]
[WhiteElo "2940"]
[BlackElo "2780"]
[TimeControl "180+1"]
[EndTime "8:40:24 PDT"]
[Termination "sergoy won by resignation"]

1. d4 {[%clk 0:03:00.9]} 1... Nf6 {[%clk 0:02:59.5]} 2. c4 {[%clk 0:03:01.4]}
2... e6 {[%clk 0:02:59.7]} 3. Nf3 {[%clk 0:03:02]} 3... d5 {[%clk 0:02:59]} 4.
Nc3 {[%clk 0:03:02]} 4... dxc4 {[%clk 0:02:59.3]} 5. e4 {[%clk 0:03:01.4]} 5...
Bb4 {[%clk 0:02:59.7]} 6. Bxc4 {[%clk 0:03:00.5]} 6... Nxe4 {[%clk 0:02:59.3]}
7. O-O {[%clk 0:03:00.9]} 7... Nxc3 {[%clk 0:02:53.7]} 8. bxc3 {[%clk
0:03:00.6]} 8... Bd6 {[%clk 0:02:52.9]} 9. Ng5 {[%clk 0:02:59.9]} 9... h6 {[%clk
0:02:51.4]} 10. Qh5 {[%clk 0:02:57.5]} 10... O-O {[%clk 0:02:47.7]} 11. Ne4
{[%clk 0:02:57.6]} 11... Nd7 {[%clk 0:02:13.7]} 12. Bxh6 {[%clk 0:02:18.6]}
12... gxh6 {[%clk 0:02:14.6]} 13. Qxh6 {[%clk 0:02:19.1]} 13... Re8 {[%clk
0:02:14.2]} 14. Rae1 {[%clk 0:01:36.8]} 14... Bf8 {[%clk 0:01:57.5]} 15. Qh5
{[%clk 0:01:36.3]} 15... Nf6 {[%clk 0:01:50.2]} 16. Nxf6+ {[%clk 0:01:35.5]}
16... Qxf6 {[%clk 0:01:51.1]} 17. Re3 {[%clk 0:01:35.8]} 17... Bg7 {[%clk
0:01:36.1]} 18. Bd3 {[%clk 0:01:12.5]} 18... Qh6 {[%clk 0:01:11.5]} 19. Qc5
{[%clk 0:01:12.3]} 19... e5 {[%clk 0:01:05.9]} 20. Qxc7 {[%clk 0:01:11.5]} 20...
Be6 {[%clk 0:00:58.1]} 21. dxe5 {[%clk 0:01:11.3]} 21... Rac8 {[%clk 0:00:38.1]}
22. Qxb7 {[%clk 0:01:11.1]} 22... Rxc3 {[%clk 0:00:38.7]} 23. Qb4 {[%clk
0:00:39.1]} 23... Rcc8 {[%clk 0:00:20.6]} 24. Rfe1 {[%clk 0:00:32.8]} 24... Red8
{[%clk 0:00:19.8]} 25. Qe4 {[%clk 0:00:32.3]} 25... Qg6 {[%clk 0:00:11.6]} 26.
Qxg6 {[%clk 0:00:22.3]} 26... fxg6 {[%clk 0:00:12.5]} 27. Bxg6 {[%clk
0:00:22.7]} 27... Rd2 {[%clk 0:00:10.8]} 28. Rd3 {[%clk 0:00:19.8]} 28... Rxd3
{[%clk 0:00:06.7]} 29. Bxd3 {[%clk 0:00:20.7]} 29... Bxa2 {[%clk 0:00:06.8]} 30.
f4 {[%clk 0:00:20.3]} 30... Rc3 {[%clk 0:00:04.4]} 31. Bg6 {[%clk 0:00:18.7]}
31... a5 {[%clk 0:00:04.5]} 32. f5 {[%clk 0:00:17.3]} 32... a4 {[%clk
0:00:04.3]} 33. e6 {[%clk 0:00:17.5]} 33... Bd4+ {[%clk 0:00:02.6]} 34. Kh1
{[%clk 0:00:15.2]} 34... Bf6 {[%clk 0:00:03]} 35. h4 {[%clk 0:00:13.5]} 35...
Bd5 {[%clk 0:00:02.7]} 36. Kh2 {[%clk 0:00:10.5]} 36... a3 {[%clk 0:00:02]} 37.
e7 {[%clk 0:00:09.7]} 37... Bxe7 {[%clk 0:00:02]} 38. Rxe7 {[%clk 0:00:10.6]}
38... a2 {[%clk 0:00:02.5]} 39. f6 {[%clk 0:00:10.9]} 39... Rc8 {[%clk
0:00:01.4]} 40. Re1 {[%clk 0:00:06.5]} 40... Ra8 {[%clk 0:00:01.8]} 41. Ra1
{[%clk 0:00:06.8]} 41... Kf8 {[%clk 0:00:01.9]} 42. g4 {[%clk 0:00:06.8]} 42...
Ra6 {[%clk 0:00:02.5]} 43. g5 {[%clk 0:00:07.1]} 43... Rb6 {[%clk 0:00:03.2]}
44. Kg3 {[%clk 0:00:06.9]} 44... Rb2 {[%clk 0:00:03.5]} 45. h5 {[%clk
0:00:07.2]} 45... Rb3+ {[%clk 0:00:03.4]} 46. Kf4 {[%clk 0:00:07.2]} 46... Rh3
{[%clk 0:00:03.3]} 47. h6 {[%clk 0:00:07.2]} 47... Rh1 {[%clk 0:00:03.8]} 48. h7
{[%clk 0:00:05.3]} 48... Rh4+ {[%clk 0:00:01.7]} 49. Ke5 {[%clk 0:00:05.4]}
49... Bb3 {[%clk 0:00:01.9]} 50. Bf5 {[%clk 0:00:05.6]} 50... Rh2 {[%clk
0:00:01.6]} 51. g6 {[%clk 0:00:06.2]} 1-0

[Event "Early-Titled-Tuesday-Blitz-July-09-2024"]
[Site "Chess.com"]
[Date "2024.07.09"]
[Round "4"]
[White "burbur555"]
[Black "Kotofeyca"]
[Result "1/2-1/2"]
[WhiteElo "2732"]
[BlackElo "2514"]
[TimeControl "180+1"]
[EndTime "8:40:25 PDT"]
[Termination "Game drawn by repetition"]

1. Nf3 {[%clk 0:03:00.9]} 1... d5 {[%clk 0:02:58.3]} 2. c4 {[%clk 0:03:00]} 2...
c6 {[%clk 0:02:58.6]} 3. e3 {[%clk 0:02:59.4]} 3... Nf6 {[%clk 0:02:58.7]} 4.
Nc3 {[%clk 0:02:59.2]} 4... a6 {[%clk 0:02:58.8]} 5. b3 {[%clk 0:02:58.3]} 5...
Bg4 {[%clk 0:02:58.1]} 6. Bb2 {[%clk 0:02:55.9]} 6... Nbd7 {[%clk 0:02:57.3]} 7.
d4 {[%clk 0:02:54.7]} 7... e6 {[%clk 0:02:56.7]} 8. Be2 {[%clk 0:02:53.4]} 8...
Bd6 {[%clk 0:02:50.7]} 9. h3 {[%clk 0:02:52.5]} 9... Bh5 {[%clk 0:02:50.3]} 10.
O-O {[%clk 0:02:51.8]} 10... Qe7 {[%clk 0:02:50.5]} 11. Ne5 {[%clk 0:02:42.5]}
11... Bxe2 {[%clk 0:02:48.7]} 12. Nxe2 {[%clk 0:02:41.8]} 12... Ba3 {[%clk
0:02:41.6]} 13. Bxa3 {[%clk 0:02:39.2]} 13... Qxa3 {[%clk 0:02:42.5]} 14. Nxd7
{[%clk 0:02:39.2]} 14... Nxd7 {[%clk 0:02:41.3]} 15. Qc2 {[%clk 0:02:38.7]}
15... O-O {[%clk 0:02:33]} 16. Nc3 {[%clk 0:02:32.3]} 16... b5 {[%clk
0:02:13.7]} 17. c5 {[%clk 0:02:27.7]} 17... e5 {[%clk 0:02:01.1]} 18. Rab1
{[%clk 0:02:17.6]} 18... Qb4 {[%clk 0:01:37.6]} 19. Ne2 {[%clk 0:02:13.1]} 19...
e4 {[%clk 0:01:11.8]} 20. f3 {[%clk 0:02:00.4]} 20... exf3 {[%clk 0:01:07.2]}
21. gxf3 {[%clk 0:01:59.2]} 21... Rfe8 {[%clk 0:01:04.1]} 22. Kf2 {[%clk
0:01:55.6]} 22... Nf6 {[%clk 0:01:01.8]} 23. Rg1 {[%clk 0:01:53.7]} 23... Ra7
{[%clk 0:00:57.3]} 24. Nc1 {[%clk 0:01:53.3]} 24... Rae7 {[%clk 0:00:52.9]} 25.
Nd3 {[%clk 0:01:53.2]} 25... Qa5 {[%clk 0:00:51.8]} 26. Ne5 {[%clk 0:01:47.1]}
26... Qc7 {[%clk 0:00:45.8]} 27. Rbe1 {[%clk 0:01:30.5]} 27... Nd7 {[%clk
0:00:37.7]} 28. Ng4 {[%clk 0:01:29.3]} 28... g6 {[%clk 0:00:30]} 29. Rg2 {[%clk
0:01:19.7]} 29... Kg7 {[%clk 0:00:29.3]} 30. Nh2 {[%clk 0:01:03.7]} 30... Kh8
{[%clk 0:00:21.5]} 31. h4 {[%clk 0:00:59.9]} 31... h5 {[%clk 0:00:18.2]} 32. Nf1
{[%clk 0:00:56]} 32... Nf6 {[%clk 0:00:18.2]} 33. Kg1 {[%clk 0:00:52.2]} 33...
Qd7 {[%clk 0:00:18.6]} 34. Qf2 {[%clk 0:00:50]} 34... Qh3 {[%clk 0:00:18.1]} 35.
a3 {[%clk 0:00:44.3]} 35... Kg7 {[%clk 0:00:17.7]} 36. Rg3 {[%clk 0:00:36.7]}
36... Qf5 {[%clk 0:00:17.1]} 37. Rg5 {[%clk 0:00:34.9]} 37... Qe6 {[%clk
0:00:16.4]} 38. Ng3 {[%clk 0:00:31.5]} 38... Kh6 {[%clk 0:00:14.6]} 39. Nf1
{[%clk 0:00:25.3]} 39... Nh7 {[%clk 0:00:14.3]} 40. Rg3 {[%clk 0:00:23.6]} 40...
Qf6 {[%clk 0:00:14.8]} 41. Rg2 {[%clk 0:00:22.5]} 41... Nf8 {[%clk 0:00:15]} 42.
Qg3 {[%clk 0:00:20.7]} 42... Ne6 {[%clk 0:00:15.1]} 43. Rd1 {[%clk 0:00:17]}
43... Ng7 {[%clk 0:00:15]} 44. Qg5+ {[%clk 0:00:16.3]} 44... Qxg5 {[%clk
0:00:14.9]} 45. hxg5+ {[%clk 0:00:16.6]} 45... Kh7 {[%clk 0:00:15.3]} 46. Kf2
{[%clk 0:00:16.3]} 46... Nf5 {[%clk 0:00:15.8]} 47. Rd3 {[%clk 0:00:16.3]} 47...
Kg7 {[%clk 0:00:15.5]} 48. Rh2 {[%clk 0:00:15.8]} 48... Re6 {[%clk 0:00:15.5]}
49. f4 {[%clk 0:00:15.4]} 49... Ne7 {[%clk 0:00:13.3]} 50. Nd2 {[%clk
0:00:14.3]} 50... Nf5 {[%clk 0:00:11.7]} 51. Rh3 {[%clk 0:00:13.3]} 51... a5
{[%clk 0:00:11.6]} 52. Rf3 {[%clk 0:00:09.5]} 52... Kf8 {[%clk 0:00:10.7]} 53.
Rh3 {[%clk 0:00:10]} 53... Kg7 {[%clk 0:00:10.7]} 54. Ke2 {[%clk 0:00:08.4]}
54... Kf8 {[%clk 0:00:09.8]} 55. Kf2 {[%clk 0:00:08.2]} 55... Kg7 {[%clk
0:00:09.7]} 1/2-1/2